fUSD/lending_fUSD_20240331
["ID","MTS","AMOUNT","RATE_DAILY","PERIOD"]
[321161745,1711923081751,-500.0,0.00056164,120]
[321161746,1711923081761,-500.0,0.00056164,120]
[321161747,1711923081771,-500.0,0.00056164,120]
[321161748,1711923081780,-500.0,0.00056164,120]
[321161749,1711923081789,-500.0,0.00056164,120]
[321161750,1711923081799,-649.57929539,0.00056164,120]
[321161751,1711923081809,-500.0,0.00056164,120]
[321161752,1711923081819,-1746.06,0.00056164,120]
[321161753,1711923081829,-500.0,0.00056164,120]
[321161754,1711923081838,-500.0,0.00056164,120]
[321161755,1711923081847,-500.0,0.00056164,120]
[321161756,1711923081856,-500.0,0.00056164,120]
[321161757,1711923081866,-712.85,0.00056164,120]
[321161758,1711923081875,-2884.5,0.00056164,120]
[321161759,1711923081885,-713.5,0.00056164,120]
[321161760,1711923081894,-500.0,0.00056164,120]
[321161761,1711923081903,-2363.46,0.00056164,120]
[321161762,1711923081914,-500.0,0.00056164,120]
[321161763,1711923081923,-500.0,0.00056164,120]
[321161764,1711923081934,-500.0,0.00056164,120]
[321161765,1711923081944,-667.75,0.00056164,120]
[321161766,1711923081959,-337.26,0.00056164,120]
[321161767,1711923081973,-500.0,0.00056164,120]
[321161768,1711923081985,-500.0,0.00056164,120]
[321161769,1711923081994,-1414.83,0.00056164,120]
[321161770,1711923082005,-500.0,0.00056164,120]
[321161771,1711923082014,-500.0,0.00056164,120]
[321161772,1711923082025,-500.0,0.00056164,120]
[321161773,1711923082035,-500.0,0.00056164,120]
[321161774,1711923082046,-500.0,0.00056164,120]
[321161775,1711923082055,-500.0,0.00056164,120]
[321161776,1711923082065,-500.0,0.00056164,120]
[321161777,1711923082075,-885.74,0.00056164,120]
[321161778,1711923082085,-500.0,0.00056164,120]
[321161779,1711923082095,-500.0,0.00056164,120]
[321161780,1711923082104,-500.0,0.00056164,120]
[321161781,1711923082113,-503.45,0.00056164,120]
[321161782,1711923082123,-500.0,0.00056164,120]
[321161783,1711923082133,-241.93350599,0.00056164,120]
[321161784,1711923082143,-500.0,0.00056164,120]
[321161785,1711923082152,-814.54,0.00056164,120]
[321161786,1711923082161,-649.89,0.00056164,120]
[321161787,1711923082171,-620.38,0.00056164,120]
[321161788,1711923082182,-5209.69,0.00056164,120]
[321161789,1711923082192,-500.0,0.00056164,120]
[321161790,1711923082203,-500.0,0.00056164,120]
[321161791,1711923082213,-2408.64,0.00056164,120]
[321161792,1711923082225,-928.92,0.00056164,120]
[321161793,1711923082236,-500.0,0.00056164,120]
[321161794,1711923082247,-2431.64,0.00056164,120]
[321161795,1711923082258,-1650.94,0.00056164,120]
[321161796,1711923082268,-500.0,0.00056164,120]
[321161797,1711923082279,-1122.55,0.00056164,120]
[321161798,1711923082289,-679.38,0.00056164,120]
[321161799,1711923082301,-1452.44,0.00056164,120]
[321161800,1711923082311,-500.0,0.00056164,120]
[321161801,1711923082321,-4490.49,0.00056164,120]
[321161802,1711923082331,-500.0,0.00056164,120]
[321161803,1711923082340,-500.0,0.00056164,120]
[321161804,1711923082350,-816.6,0.00056164,120]
[321161805,1711923082361,-1251.11,0.00056164,120]
[321161806,1711923082370,-348.15822054,0.00056164,120]
[321161807,1711923082380,-1106.99,0.00056164,120]
[321161808,1711923082390,-500.0,0.00056164,120]
[321161809,1711923082400,-500.0,0.00056164,120]
[321161810,1711923082411,-2336.74,0.00056164,120]
[321161811,1711923082421,-7116.49,0.00056164,120]
[321161812,1711923082430,-500.0,0.00056164,120]
[321161813,1711923082440,-5153.42,0.00056164,120]
[321161814,1711923082451,-500.0,0.00056164,120]
[321161815,1711923082460,-500.0,0.00056164,120]
[321161816,1711923082471,-500.0,0.00056164,120]
[321161817,1711923082482,-4895.04,0.00056164,120]
[321161818,1711923082491,-500.0,0.00056164,120]
[321161819,1711923082501,-1551.4,0.00056164,120]
[321161820,1711923082511,-661.38,0.00056164,120]
[321161821,1711923082521,-500.0,0.00056164,120]
[321161822,1711923082530,-2104.3,0.00056164,120]
[321161823,1711923082541,-905.15,0.00056164,120]
[321161824,1711923082550,-500.0,0.00056164,120]
[321161825,1711923082561,-500.0,0.00056164,120]
[321161826,1711923082571,-500.0,0.00056164,120]
[321161827,1711923082580,-1274.03,0.00056164,120]
[321161828,1711923082590,-524.87273579,0.00056164,120]
[321161829,1711923082600,-682.07,0.00056164,120]
[321161830,1711923082609,-3275.01,0.00056164,120]
[321161831,1711923082619,-515.88082734,0.00056164,120]
[321161832,1711923082629,-10548.01,0.00056164,120]
[321161833,1711923082638,-500.0,0.00056164,120]
[321161834,1711923082647,-500.0,0.00056164,120]
[321161835,1711923082657,-500.0,0.00056164,120]
[321161836,1711923082667,-500.0,0.00056164,120]
[321161837,1711923082678,-765.64,0.00056164,120]
[321161838,1711923082687,-500.0,0.00056164,120]
[321161839,1711923082697,-3678.47,0.00056164,120]
[321161840,1711923082707,-664.19,0.00056164,120]
[321161841,1711923082718,-500.0,0.00056164,120]
[321161842,1711923082729,-500.0,0.00056164,120]
[321161843,1711923082740,-500.0,0.00056164,120]
[321161844,1711923082751,-500.0,0.00056164,120]
[321161845,1711923082762,-536.88260529,0.00056164,120]
[321161846,1711923082773,-500.0,0.00056164,120]
[321161847,1711923082785,-500.0,0.00056164,120]
[321161848,1711923082795,-500.0,0.00056164,120]
[321161849,1711923082804,-500.0,0.00056164,120]
[321161850,1711923082814,-1709.54,0.00056164,120]
[321161851,1711923082823,-500.0,0.00056164,120]
[321161852,1711923082835,-2513.28,0.00056164,120]
[321161853,1711923082848,-500.0,0.00056164,120]
[321161854,1711923082859,-1507.12,0.00056164,120]
[321161855,1711923082870,-500.0,0.00056164,120]
[321161856,1711923082881,-500.0,0.00056164,120]
[321161857,1711923082892,-500.0,0.00056164,120]
[321161858,1711923082902,-6377.51,0.00056164,120]
[321161859,1711923082914,-1019.69,0.00056164,120]
[321161860,1711923082924,-500.0,0.00056164,120]
[321161861,1711923082935,-1693.34,0.00056164,120]
[321161862,1711923082950,-500.0,0.00056164,120]
[321161863,1711923082961,-7403.85,0.00056164,120]
[321161864,1711923082971,-500.0,0.00056164,120]
[321161865,1711923082982,-500.0,0.00056164,120]
[321161866,1711923082991,-794.81,0.00056164,120]
[321161867,1711923083002,-500.0,0.00056164,120]
[321161868,1711923083013,-500.0,0.00056164,120]
[321161869,1711923083027,-685.72,0.00056164,120]
[321161870,1711923083038,-523.21683431,0.00056164,120]
[321161871,1711923083049,-735.7,0.00056164,120]
[321161872,1711923083060,-500.0,0.00056164,120]
[321161873,1711923083071,-500.0,0.00056164,120]
[321161874,1711923083083,-3704.86,0.00056164,120]
[321161875,1711923083095,-500.0,0.00056164,120]
[321161876,1711923083105,-2055.32,0.00056164,120]
[321161877,1711923083117,-500.0,0.00056164,120]
[321161878,1711923083128,-500.0,0.00056164,120]
[321161879,1711923083139,-6788.15,0.00056164,120]
[321161880,1711923083150,-500.0,0.00056164,120]
[321161881,1711923083161,-1631.72,0.00056164,120]
[321161882,1711923083171,-500.0,0.00056164,120]
[321161883,1711923083182,-799.91,0.00056164,120]
[321161884,1711923083193,-500.0,0.00056164,120]
[321161885,1711923083204,-3950.58,0.00056164,120]
[321161886,1711923083215,-527.54,0.00056164,120]
[321161887,1711923083225,-575.9618602,0.00056164,120]
[321161888,1711923083237,-500.0,0.00056164,120]
[321161889,1711923083248,-500.0,0.00056164,120]
[321161890,1711923083259,-500.0,0.00056164,120]
[321161891,1711923083270,-169.45,0.00056164,120]
[321161892,1711923083280,-659.94,0.00056164,120]
[321161893,1711923083290,-2106.81,0.00056164,120]
[321161894,1711923083299,-500.0,0.00056164,120]
[321161895,1711923083310,-153.26021313,0.00056173,120]
[321161896,1711923083321,-1198.0,0.000562,120]
[321161897,1711923083331,-155.81,0.000562,14]
[321161898,1711923083341,-599.94081,0.0005622,79]
[321161899,1711923083351,-307.28050503,0.00056402,56]
[321161900,1711923083362,-3337.11,0.00056437,120]
[321161901,1711923083372,-3337.11,0.00056437,120]
[321161902,1711923083382,-3337.11,0.00056437,120]
[321161903,1711923083391,-3337.11,0.00056437,120]
[321161904,1711923083401,-3337.11,0.00056437,120]
[321161905,1711923083411,-3337.14,0.00056437,120]
[321161906,1711923083420,-500.0,0.00056438,16]
[321161907,1711923083430,-259.65,0.00056438,120]
[321161908,1711923083440,-500.0,0.00056438,120]
[321161909,1711923083449,-175.0,0.00056438,120]
[321161910,1711923083458,-500.0,0.00056438,120]
[321161911,1711923083467,-500.0,0.00056438,120]
[321161912,1711923083476,-500.0,0.00056438,120]
[321161913,1711923083486,-522.16,0.00056438,120]
[321161914,1711923083495,-500.0,0.00056438,120]
[321161915,1711923083504,-500.0,0.00056438,120]
[321161916,1711923083514,-500.0,0.00056438,120]
[321161917,1711923083523,-500.0,0.00056438,120]
[321161918,1711923083533,-500.0,0.00056438,120]
[321161919,1711923083542,-500.0,0.00056438,120]
[321161920,1711923083552,-500.0,0.00056438,7]
[321161921,1711923083561,-500.0,0.00056438,120]
[321161922,1711923083570,-500.0,0.00056438,120]
[321161923,1711923083579,-500.0,0.00056438,120]
[321161924,1711923083589,-500.0,0.00056438,120]
[321161925,1711923083598,-292.55,0.00056438,120]
[321161926,1711923083607,-181.8,0.00056438,120]
[321161927,1711923083617,-500.0,0.00056438,120]
[321161928,1711923083627,-500.0,0.00056438,120]
[321161929,1711923083636,-500.0,0.00056438,120]
[321161930,1711923083645,-500.0,0.00056438,120]
[321161931,1711923083655,-500.0,0.00056438,120]
[321161932,1711923083664,-500.0,0.00056438,120]
[321161933,1711923083673,-500.0,0.00056438,120]
[321161934,1711923083682,-500.0,0.00056438,120]
[321161935,1711923083691,-500.0,0.00056438,120]
[321161936,1711923083702,-595.1,0.00056438,120]
[321161937,1711923083711,-500.0,0.00056438,120]
[321161938,1711923083721,-500.0,0.00056438,120]
[321161939,1711923083732,-500.0,0.00056438,120]
[321161940,1711923083742,-500.0,0.00056438,120]
[321161941,1711923083751,-500.0,0.00056438,120]
[321161942,1711923083761,-502.28,0.00056438,120]
[321161943,1711923083770,-500.0,0.00056438,120]
[321161944,1711923083780,-500.0,0.00056438,120]
[321161945,1711923083790,-500.0,0.00056438,120]
[321161946,1711923083799,-500.0,0.00056438,120]
[321161947,1711923083809,-500.0,0.00056438,120]
[321161948,1711923083820,-500.0,0.00056438,120]
[321161949,1711923083830,-500.0,0.00056438,120]
[321161950,1711923083840,-500.0,0.00056438,120]
[321161951,1711923083850,-501.38,0.00056438,120]
[321161952,1711923083859,-500.0,0.00056438,120]
[321161953,1711923083868,-500.0,0.00056438,120]
[321161954,1711923083877,-500.0,0.00056438,120]
[321161955,1711923083886,-500.0,0.00056438,120]
[321161956,1711923083895,-500.0,0.00056438,120]
[321161957,1711923083905,-500.0,0.00056438,120]
[321161958,1711923083914,-500.0,0.00056438,120]
[321161959,1711923083924,-261.8,0.00056438,120]
[321161960,1711923083934,-500.0,0.00056438,120]
[321161961,1711923083944,-610.63,0.00056438,120]
[321161962,1711923083955,-500.0,0.00056438,120]
[321161963,1711923083964,-500.0,0.00056438,120]
[321161964,1711923083973,-222.31,0.00056438,30]
[321161965,1711923083985,-500.0,0.00056438,120]
[321161966,1711923083996,-420.33471239,0.00056438,120]
[321161967,1711923084005,-500.0,0.00056438,120]
[321161968,1711923084015,-500.0,0.00056438,120]
[321161969,1711923084025,-640.27,0.00056438,120]
[321161970,1711923084035,-500.0,0.00056438,120]
[321161971,1711923084045,-500.0,0.00056438,120]
[321161972,1711923084054,-500.0,0.00056438,120]
[321161973,1711923084063,-500.0,0.00056438,120]
[321161974,1711923084073,-500.0,0.00056438,120]
[321161975,1711923084082,-500.0,0.00056438,120]
[321161976,1711923084091,-500.0,0.00056438,120]
[321161977,1711923084100,-500.0,0.00056438,120]
[321161978,1711923084109,-428.8,0.00056438,120]
[321161979,1711923084118,-500.0,0.00056438,120]
[321161980,1711923084127,-500.0,0.00056438,120]
[321161981,1711923084137,-500.0,0.00056438,120]
[321161982,1711923084146,-361.92733814,0.00056438,120]
[321161983,1711923084155,-500.0,0.00056438,120]
[321161984,1711923084164,-500.0,0.00056438,120]
[321161985,1711923084173,-500.0,0.00056438,120]
[321161986,1711923084182,-500.0,0.00056438,120]
[321161987,1711923084191,-500.0,0.00056438,120]
[321161988,1711923084200,-150.0,0.00056438,120]
[321161989,1711923084209,-500.0,0.00056438,120]
[321161990,1711923084218,-500.0,0.00056438,120]
[321161991,1711923084227,-500.0,0.00056438,120]
[321161992,1711923084238,-500.0,0.00056438,120]
[321161993,1711923084247,-500.0,0.00056438,120]
[321161994,1711923084256,-645.57,0.00056438,120]
[321161995,1711923084266,-500.0,0.00056438,120]
[321161996,1711923084275,-500.0,0.00056438,120]
[321161997,1711923084285,-634.82175384,0.00056438,120]
[321161998,1711923084294,-537.6,0.00056438,120]
[321161999,1711923084303,-500.0,0.00056438,120]
[321162000,1711923084312,-1024.84,0.00056438,120]
[321162001,1711923084321,-231.46037652,0.00056438,120]
[321162002,1711923084330,-496.5,0.00056438,120]
[321162003,1711923084339,-500.0,0.00056438,120]
[321162004,1711923084348,-500.0,0.00056438,120]
[321162005,1711923084357,-500.0,0.00056438,120]
[321162006,1711923084367,-1002.26,0.00056438,120]
[321162007,1711923084376,-500.0,0.00056438,120]
[321162008,1711923084385,-500.0,0.00056438,120]
[321162009,1711923084395,-384.98057269,0.00056438,120]
[321162010,1711923084405,-500.0,0.00056438,120]
[321162011,1711923084415,-500.0,0.00056438,120]
[321162012,1711923084424,-905.32,0.00056438,120]
[321162013,1711923084433,-500.0,0.00056438,120]
[321162014,1711923084443,-500.0,0.00056438,120]
[321162015,1711923084452,-163.18,0.00056438,120]
[321162016,1711923084602,-539.27341459,0.00056438,120]
[321162017,1711923084612,-506.01,0.00056438,120]
[321162018,1711923084622,-1017.03,0.00056438,120]
[321162019,1711923084631,-500.0,0.00056438,120]
[321162020,1711923084641,-500.0,0.00056438,120]
[321162021,1711923084650,-500.0,0.00056438,120]
[321162022,1711923084659,-515.91,0.00056438,120]
[321162023,1711923084669,-500.0,0.00056438,120]
[321162024,1711923084678,-500.0,0.00056438,120]
[321162025,1711923084687,-500.0,0.00056438,120]
[321162026,1711923084696,-500.0,0.00056438,120]
[321162027,1711923084705,-500.0,0.00056438,120]
[321162028,1711923084714,-500.0,0.00056438,120]
[321162029,1711923084723,-500.0,0.00056438,120]
[321162030,1711923084734,-500.0,0.00056438,120]
[321162031,1711923084742,-500.0,0.00056438,120]
[321162032,1711923084751,-500.0,0.00056438,120]
[321162033,1711923084761,-907.1,0.00056438,120]
[321162034,1711923084770,-500.0,0.00056438,120]
[321162035,1711923084779,-500.0,0.00056438,120]
[321162036,1711923084788,-177.46,0.00056438,120]
[321162037,1711923084797,-500.0,0.00056438,120]
[321162038,1711923084807,-500.0,0.00056438,120]
[321162039,1711923084816,-768.18,0.00056438,120]
[321162040,1711923084825,-453.74,0.00056438,120]
[321162041,1711923084834,-500.0,0.00056438,120]
[321162042,1711923084843,-500.0,0.00056438,7]
[321162043,1711923084853,-511.91,0.00056438,120]
[321162044,1711923084862,-500.0,0.00056438,120]
[321162045,1711923084871,-500.0,0.00056438,120]
[321162046,1711923084880,-500.0,0.00056438,120]
[321162047,1711923084890,-500.0,0.00056438,120]
[321162048,1711923084899,-500.0,0.00056438,120]
[321162049,1711923084908,-500.0,0.00056438,120]
[321162050,1711923084917,-597.54694954,0.00056438,120]
[321162051,1711923084926,-500.0,0.00056438,120]
[321162052,1711923084936,-500.0,0.00056438,120]
[321162053,1711923084947,-500.0,0.00056438,120]
[321162054,1711923084956,-500.0,0.00056438,120]
[321162055,1711923084966,-500.0,0.00056438,120]
[321162056,1711923084975,-500.0,0.00056438,120]
[321162057,1711923084986,-500.0,0.00056438,120]
[321162058,1711923084995,-500.0,0.00056438,120]
[321162059,1711923085004,-334.3579436,0.00056438,120]
[321162060,1711923085013,-500.0,0.00056438,120]
[321162061,1711923085023,-540.27887713,0.00056438,120]
[321162062,1711923085033,-500.0,0.00056438,120]
[321162063,1711923085042,-500.0,0.00056438,120]
[321162064,1711923085052,-500.0,0.00056438,120]
[321162065,1711923085062,-500.0,0.00056438,120]
[321162066,1711923085071,-500.0,0.00056438,120]
[321162067,1711923085081,-500.0,0.00056438,120]
[321162068,1711923085090,-500.0,0.00056438,120]
[321162069,1711923085100,-4659.05,0.00056438,120]
[321162070,1711923085109,-500.0,0.00056438,120]
[321162071,1711923085119,-563.3,0.00056438,120]
[321162072,1711923085128,-500.0,0.00056438,120]
[321162073,1711923085137,-639.25836668,0.00056438,120]
[321162074,1711923085147,-500.0,0.00056438,120]
[321162075,1711923085156,-500.0,0.00056438,120]
[321162076,1711923085165,-500.0,0.00056438,50]
[321162077,1711923085175,-381.73182193,0.00056438,120]
[321162078,1711923085185,-915.78,0.00056438,120]
[321162079,1711923085194,-500.0,0.00056438,120]
[321162080,1711923085204,-13755.39,0.00056438,120]
[321162081,1711923085213,-500.0,0.00056438,120]
[321162082,1711923085222,-500.0,0.00056438,120]
[321162083,1711923085231,-500.0,0.00056438,120]
[321162084,1711923085241,-10513.97,0.00056438,120]
[321162085,1711923085251,-500.0,0.00056438,120]
[321162086,1711923085261,-500.0,0.00056438,120]
[321162087,1711923085270,-500.0,0.00056438,120]
[321162088,1711923085279,-500.0,0.00056438,120]
[321162089,1711923085289,-500.0,0.00056438,120]
[321162090,1711923085298,-500.0,0.00056438,120]
[321162091,1711923085307,-1760.34,0.00056438,120]
[321162092,1711923085318,-611.84248366,0.00056438,120]
[321162093,1711923085330,-500.0,0.00056438,120]
[321162094,1711923085340,-500.0,0.00056438,120]
[321162095,1711923085350,-500.0,0.00056438,120]
[321162096,1711923085359,-500.0,0.00056438,120]
[321162097,1711923085368,-1166.27,0.00056438,120]
[321162098,1711923085378,-500.0,0.00056438,120]
[321162099,1711923085387,-594.48,0.00056438,120]
[321162100,1711923085396,-500.0,0.00056438,120]
[321162101,1711923085406,-500.0,0.00056438,120]
[321162102,1711923085415,-500.0,0.00056438,120]
[321162103,1711923085424,-500.0,0.00056438,120]
[321162104,1711923085434,-556.05,0.00056438,120]
[321162105,1711923085443,-500.0,0.00056438,120]
[321162106,1711923085453,-500.0,0.00056438,120]
[321162107,1711923085462,-500.0,0.00056438,120]
[321162108,1711923085471,-500.0,0.00056438,120]
[321162109,1711923085481,-1840.68,0.00056438,21]
[321162110,1711923085490,-500.0,0.00056438,120]
[321162111,1711923085499,-500.0,0.00056438,120]
[321162112,1711923085508,-500.0,0.00056438,120]
[321162113,1711923085517,-500.0,0.00056438,120]
[321162114,1711923085526,-1144.7,0.00056438,120]
[321162115,1711923085536,-500.0,0.00056438,120]
[321162116,1711923085545,-500.0,0.00056438,120]
[321162117,1711923085554,-500.0,0.00056438,120]
[321162118,1711923085563,-500.0,0.00056438,120]
[321162119,1711923085573,-500.0,0.00056438,120]
[321162120,1711923085582,-500.0,0.00056438,120]
[321162121,1711923085591,-431.14,0.00056438,120]
[321162122,1711923085600,-500.0,0.00056438,120]
[321162123,1711923085609,-763.8,0.00056438,120]
[321162124,1711923085618,-500.0,0.00056438,120]
[321162125,1711923085627,-1313.42,0.00056438,120]
[321162126,1711923085636,-500.0,0.00056438,120]
[321162127,1711923085645,-500.0,0.00056438,120]
[321162128,1711923085654,-820.21,0.00056438,120]
[321162129,1711923085663,-500.0,0.00056438,120]
[321162130,1711923085672,-1611.16,0.00056438,120]
[321162131,1711923085681,-500.0,0.00056438,120]
[321162132,1711923085690,-500.0,0.00056438,120]
[321162133,1711923085699,-1081.74,0.00056438,120]
[321162134,1711923085708,-500.0,0.00056438,120]
[321162135,1711923085718,-1981.77,0.00056438,120]
[321162136,1711923085727,-500.0,0.00056438,120]
[321162137,1711923085737,-500.0,0.00056438,120]
[321162138,1711923085746,-500.0,0.00056438,120]
[321162139,1711923085755,-500.0,0.00056438,120]
[321162140,1711923085765,-500.0,0.00056438,120]
[321162141,1711923085774,-500.0,0.00056438,120]
[321162142,1711923085783,-500.0,0.00056438,120]
[321162143,1711923085792,-851.93,0.00056438,120]
[321162144,1711923085801,-500.0,0.00056438,120]
[321162145,1711923085810,-500.0,0.00056438,120]
[321162146,1711923085820,-500.0,0.00056438,120]
[321162147,1711923085831,-500.0,0.00056438,120]
[321162148,1711923085840,-500.0,0.00056438,120]
[321162149,1711923085849,-2609.71,0.00056438,120]
[321162150,1711923085858,-1060.1,0.00056438,120]
[321162151,1711923085867,-6799.46,0.00056438,120]
[321162152,1711923085876,-500.0,0.00056438,120]
[321162153,1711923085886,-500.0,0.00056438,120]
[321162154,1711923085895,-1765.35,0.00056438,120]
[321162155,1711923085904,-500.0,0.00056438,120]
[321162156,1711923085913,-500.0,0.00056438,120]
[321162157,1711923085923,-500.0,0.00056438,120]
[321162158,1711923085932,-500.0,0.00056438,120]
[321162159,1711923085946,-500.0,0.00056438,120]
[321162160,1711923085955,-500.0,0.00056438,120]
[321162161,1711923085965,-1746.06,0.00056438,120]
[321162162,1711923085974,-500.0,0.00056438,120]
[321162163,1711923085985,-500.0,0.00056438,120]
[321162164,1711923085994,-500.0,0.00056438,120]
[321162165,1711923086003,-500.0,0.00056438,120]
[321162166,1711923086013,-712.85,0.00056438,120]
[321162167,1711923086023,-2884.5,0.00056438,120]
[321162168,1711923086034,-713.5,0.00056438,120]
[321162169,1711923086042,-500.0,0.00056438,120]
[321162170,1711923086051,-2363.46,0.00056438,120]
[321162171,1711923086061,-500.0,0.00056438,120]
[321162172,1711923086070,-309.08441681,0.00056438,120]
[321162173,1711923086079,-500.0,0.00056438,120]
[321162174,1711923086088,-667.75,0.00056438,120]
[321162175,1711923086097,-500.0,0.00056438,120]
[321162176,1711923086107,-251.4872035,0.00056438,120]
[321162177,1711923086117,-1414.83,0.00056438,120]
[321162178,1711923086125,-500.0,0.00056438,120]
[321162179,1711923086134,-500.0,0.00056438,120]
[321162180,1711923086144,-500.0,0.00056438,120]
[321162181,1711923086153,-500.0,0.00056438,120]
[321162182,1711923086162,-500.0,0.00056438,120]
[321162183,1711923086171,-500.0,0.00056438,120]
[321162184,1711923086180,-500.0,0.00056438,120]
[321162185,1711923086190,-885.74,0.00056438,120]
[321162186,1711923086199,-500.0,0.00056438,120]
[321162187,1711923086208,-500.0,0.00056438,120]
[321162188,1711923086217,-500.0,0.00056438,120]
[321162189,1711923086227,-298.08693048,0.00056438,120]
[321162190,1711923086236,-500.0,0.00056438,120]
[321162191,1711923086246,-814.54,0.00056438,120]
[321162192,1711923086256,-649.89,0.00056438,120]
[321162193,1711923086266,-620.38,0.00056438,120]
[321162194,1711923086276,-5209.69,0.00056438,120]
[321162195,1711923086285,-500.0,0.00056438,120]
[321162196,1711923086294,-375.43528541,0.00056438,120]
[321162197,1711923086304,-2408.64,0.00056438,120]
[321162198,1711923086313,-928.92,0.00056438,120]
[321162199,1711923086322,-500.0,0.00056438,120]
[321162200,1711923086331,-2431.64,0.00056438,120]
[321162201,1711923086340,-1650.94,0.00056438,120]
[321162202,1711923086350,-500.0,0.00056438,120]
[321162203,1711923086360,-1122.55,0.00056438,120]
[321162204,1711923086369,-679.38,0.00056438,120]
[321162205,1711923086378,-1452.44,0.00056438,120]
[321162206,1711923086388,-500.0,0.00056438,120]
[321162207,1711923086397,-83.14861878,0.00056438,120]
[321162208,1711923086920,-500.0,0.00054794,120]
[321162209,1711923086929,-500.0,0.00055068,120]
[321162210,1711923086939,-500.0,0.00055068,120]
[321162211,1711923086950,-737.48,0.00055342,120]
[321162212,1711923086959,-500.0,0.00055342,120]
[321162213,1711923086968,-500.0,0.00055342,120]
[321162214,1711923086978,-500.0,0.00055616,120]
[321162215,1711923086987,-151.0,0.00055616,120]
[321162216,1711923086998,-737.48,0.00055616,120]
[321162217,1711923087007,-500.0,0.00055616,120]
[321162218,1711923087016,-500.0,0.00055616,120]
[321162219,1711923087027,-500.0,0.0005589,120]
[321162220,1711923087036,-737.48,0.0005589,120]
[321162221,1711923087045,-500.0,0.0005589,120]
[321162222,1711923087054,-737.48,0.00056164,120]
[321162223,1711923087065,-79.14530522,0.00056438,120]
[321162224,1711923087101,-531.98098494,0.00054794,120]
[321162225,1711923087110,-500.0,0.00056164,120]
[321162226,1711923087119,-240.76225803,0.00056438,120]
[321162227,1711923087131,-2728.97042457,0.00056438,120]
[321162228,1711923087729,-500.0,0.00054794,120]
[321162229,1711923087740,-500.0,0.00054794,120]
[321162230,1711923087750,-500.0,0.00054794,120]
[321162231,1711923087760,-500.0,0.00054794,120]
[321162232,1711923087769,-500.0,0.00054794,120]
[321162233,1711923087779,-353.21814735,0.00055068,120]
[321162234,1711923087790,-146.78185265,0.00055068,120]
[321162235,1711923087800,-500.0,0.00055068,120]
[321162236,1711923087809,-500.0,0.00055068,120]
[321162237,1711923087818,-1358.4633934,0.00056438,120]
[321162238,1711923087828,-500.0,0.00056438,120]
[321162239,1711923087837,-500.0,0.00056438,120]
[321162240,1711923087847,-816.6,0.00056438,120]
[321162241,1711923087856,-1251.11,0.00056438,120]
[321162242,1711923087866,-1106.99,0.00056438,120]
[321162243,1711923087875,-229.23,0.00056438,120]
[321162244,1711923087885,-2336.74,0.00056438,120]